lending/lending_fUSD_20250121
["ID","MTS","AMOUNT","RATE_DAILY","PERIOD"]
[349870610,1737471040518,-136.53660996,0.00020442,2]
[349870612,1737471040529,-250.41676314,0.00020442,2]
[349870614,1737471040544,-113.0466269,0.00020442,2]
[349870616,1737471040554,-500.0,0.00020442,2]
[349870618,1737471040564,-500.0,0.00020442,2]
[349870620,1737471040574,-1210.18,0.00020442,2]
[349870622,1737471040584,-500.0,0.00020442,2]
[349870624,1737471040594,-500.0,0.00020442,2]
[349870626,1737471040605,-500.0,0.00020442,2]
[349870628,1737471040614,-500.0,0.00020442,2]
[349870630,1737471040624,-500.0,0.00020442,2]
[349870632,1737471040633,-500.0,0.00020442,2]
[349870634,1737471040643,-678.18,0.00020442,2]
[349870635,1737471040652,-500.0,0.00020442,2]
[349870636,1737471040661,-500.0,0.00020442,2]
[349870637,1737471040671,-522.55,0.00020442,2]
[349870638,1737471040680,-500.0,0.00020442,2]
[349870639,1737471040691,-500.0,0.00020442,2]
[349870640,1737471040701,-500.0,0.00020442,2]
[349870641,1737471040711,-500.0,0.00020442,2]
[349870642,1737471040720,-500.0,0.00020442,2]
[349870643,1737471040730,-547.7,0.00020442,2]
[349870644,1737471040739,-500.0,0.00020442,2]
[349870645,1737471040749,-555.36,0.00020442,2]
[349870646,1737471040758,-520.57,0.00020442,2]
[349870647,1737471040767,-446.69841123,0.00020447,2]
[349870648,1737471040776,-169.56200885,0.00020447,2]
[349870649,1737471040788,-3809.45960608,0.00020452,2]
[349870650,1737471040798,-150.0,0.00020453,2]
[349870651,1737471040807,-571.85310006,0.00020455,2]
[349870652,1737471040816,-309.46528946,0.00020461,2]
[349870653,1737471040825,-773.11,0.00020473,2]
[349870654,1737471040835,-773.11,0.00020473,2]
[349870655,1737471040844,-438.48,0.00020473,2]
[349870656,1737471040853,-438.48,0.00020473,2]
[349870657,1737471040863,-438.48,0.00020473,2]
[349870658,1737471040873,-438.48,0.00020473,2]
[349870659,1737471040883,-438.48,0.00020473,2]
[349870660,1737471040892,-437.54,0.00020473,2]
[349870661,1737471040901,-7842.962493,0.00020493,2]
[349870662,1737471040911,-150.0,0.00020495,2]
[349870663,1737471040920,-2949.6768694,0.00020496,2]
[349870664,1737471040930,-34527.99947762,0.000205,2]
[349870666,1737471041884,-646.06,0.00020143,2]
[349870667,1737471041896,-3496.45136,0.000205,2]
[349870668,1737471041910,-374471.99999989,0.000205,2]
[349870669,1737471041924,-1033.86815432,0.000205,2]
[349870670,1737471041964,-3650.3326623,0.000205,2]
[349870671,1737471041978,-435.68171857,0.000205,2]
[349870672,1737471041993,-75104.63744532,0.000205,2]
[349870673,1737471042007,-22882.35204238,0.000205,2]
[349870674,1737471042021,-10423.0,0.000205,2]
[349870675,1737471042120,-1525.18868393,0.000205,2]
[349870676,1737471042134,-5180.5,0.000205,2]
[349870677,1737471042147,-103720.15031338,0.000205,2]
[349870678,1737471042597,-500.0,0.00020143,2]
[349870679,1737471042610,-318.74373356,0.000205,2]
[349870680,1737471042623,-312.739999,0.000205,2]
[349870681,1737471042637,-10397.0,0.000205,2]
[349870683,1737471042652,-295778.4172394,0.000205,2]
[349870685,1737471042667,-481913.24584746,0.000205,2]
[349870687,1737471042681,-513671.28726837,0.000205,2]
[349870689,1737471042695,-979.13535383,0.000205,2]
[349870690,1737471042747,-794.6023,0.00020044,2]
[349870691,1737471042759,-1660.99546333,0.00020068,2]
[349870696,1737471042771,-1453.7,0.00020068,2]
[349870699,1737471042783,-1885.30453667,0.00020068,2]
[349870702,1737471042794,-409.69546333,0.000205,2]
[349870705,1737471042807,-3239.30847056,0.000205,2]
[349870708,1737471042816,-15409.13161053,0.000205,2]
[349870716,1737471043075,-150.0,0.00019599,2]
[349870717,1737471043086,-3000.0,0.0002029,2]
[349870718,1737471043096,-9445.19768802,0.000205,2]
[349870719,1737471043106,-200.0,0.000205,2]
[349870720,1737471043116,-2000.0,0.000205,2]
[349870721,1737471043126,-200.0,0.000205,2]
[349870722,1737471043135,-19534.56665532,0.000205,2]
[349870723,1737471043147,-352.86274501,0.000205,2]
[349870731,1737471043748,-1744.73244595,0.000205,2]
[349870732,1737471043760,-10542.90589795,0.000205,2]
[349870733,1737471043769,-150.0,0.00020501,2]
[349870734,1737471043779,-7380.3755966,0.00020507,2]
[349870735,1737471043791,-1008.01,0.00020546,2]
[349870736,1737471043800,-3339.85,0.00020546,2]
[349870737,1737471043810,-734.99,0.00020546,2]
[349870738,1737471043819,-500.0,0.00020546,2]
[349870739,1737471043829,-989.29,0.00020546,2]
[349870740,1737471043838,-716.28,0.00020546,2]
[349870741,1737471043848,-667.41,0.00020546,2]
[349870742,1737471043857,-1000.0,0.00020546,2]
[349870743,1737471043866,-768.53,0.00020546,2]
[349870744,1737471043876,-500.0,0.00020546,2]
[349870745,1737471043885,-804.91,0.00020546,2]
[349870746,1737471043895,-507.22454146,0.00020547,2]
[349870747,1737471043904,-500.0,0.00020547,2]
[349870748,1737471043914,-500.0,0.00020547,2]
[349870749,1737471043923,-500.0,0.00020547,2]
[349870750,1737471043932,-499.54219965,0.00020547,2]
[349870751,1737471043941,-539.65582775,0.00020547,2]
[349870752,1737471043951,-505.71336928,0.00020547,2]
[349870753,1737471043960,-500.0,0.00020547,2]
[349870754,1737471043969,-500.0,0.00020547,2]
[349870755,1737471043979,-500.0,0.00020547,2]
[349870756,1737471043988,-500.0,0.00020547,2]
[349870757,1737471043998,-500.0,0.00020547,2]
[349870758,1737471044007,-500.0,0.00020547,2]
[349870759,1737471044017,-500.0,0.00020547,2]
[349870760,1737471044026,-500.0,0.00020547,2]
[349870761,1737471044037,-500.0,0.00020547,2]
[349870762,1737471044047,-593.61839358,0.00020547,2]
[349870763,1737471044056,-500.0,0.00020547,2]
[349870764,1737471044066,-500.0,0.00020547,2]
[349870765,1737471044075,-500.0,0.00020547,2]
[349870766,1737471044085,-466.118015,0.00020547,2]
[349870767,1737471044095,-500.0,0.00020547,2]
[349870768,1737471044104,-500.0,0.00020547,2]
[349870769,1737471044113,-500.0,0.00020547,2]
[349870770,1737471044123,-500.0,0.00020547,2]
[349870771,1737471044132,-500.0,0.00020547,2]
[349870772,1737471044141,-500.0,0.00020547,2]
[349870773,1737471044151,-500.0,0.00020547,2]
[349870774,1737471044160,-261.36722586,0.00020547,2]
[349870775,1737471044170,-500.0,0.00020547,2]
[349870776,1737471044180,-500.0,0.00020547,2]
[349870777,1737471044189,-500.0,0.00020547,2]
[349870778,1737471044199,-500.0,0.00020547,2]
[349870779,1737471044208,-500.0,0.00020547,2]
[349870780,1737471044218,-205.7437947,0.00020547,2]
[349870781,1737471044227,-500.0,0.00020547,2]
[349870782,1737471044243,-500.0,0.00020547,2]
[349870783,1737471044261,-500.0,0.00020547,2]
[349870784,1737471044271,-500.0,0.00020547,2]
[349870785,1737471044281,-500.0,0.00020547,2]
[349870786,1737471044294,-500.0,0.00020547,2]
[349870787,1737471044307,-500.0,0.00020547,2]
[349870788,1737471044317,-500.0,0.00020547,2]
[349870789,1737471044326,-500.0,0.00020547,2]
[349870790,1737471044335,-500.0,0.00020547,2]
[349870791,1737471044345,-500.0,0.00020547,2]
[349870792,1737471044354,-434.95705856,0.00020547,2]
[349870793,1737471044367,-65.04294144,0.00020547,2]
[349870794,1737471044379,-500.0,0.00020547,2]
[349870795,1737471044393,-500.0,0.00020547,2]
[349870796,1737471044406,-647.57,0.00020547,2]
[349870797,1737471044419,-500.0,0.00020547,2]
[349870798,1737471044433,-500.0,0.00020547,2]
[349870799,1737471044445,-500.0,0.00020547,2]
[349870800,1737471044455,-500.0,0.00020547,2]
[349870801,1737471044465,-500.0,0.00020547,2]
[349870802,1737471044475,-500.0,0.00020547,2]
[349870803,1737471044485,-500.0,0.00020547,2]
[349870804,1737471044494,-500.0,0.00020547,2]
[349870805,1737471044504,-500.0,0.00020547,2]
[349870806,1737471044514,-500.0,0.00020547,2]
[349870807,1737471044523,-500.0,0.00020547,2]
[349870808,1737471044532,-500.0,0.00020547,2]
[349870809,1737471044544,-500.0,0.00020547,2]
[349870810,1737471044554,-189.71694787,0.00020547,2]
[349870811,1737471044563,-500.0,0.00020547,2]
[349870812,1737471044574,-500.0,0.00020547,2]
[349870813,1737471044583,-500.0,0.00020547,2]
[349870814,1737471044593,-500.0,0.00020547,2]
[349870815,1737471044602,-500.0,0.00020547,2]
[349870816,1737471044612,-500.0,0.00020547,2]
[349870817,1737471044622,-500.0,0.00020547,2]
[349870818,1737471044632,-500.0,0.00020547,2]
[349870819,1737471044642,-500.0,0.00020547,2]
[349870820,1737471044652,-500.0,0.00020547,2]
[349870821,1737471044662,-500.0,0.00020547,2]
[349870822,1737471044671,-500.0,0.00020547,2]
[349870823,1737471044681,-500.0,0.00020547,2]
[349870824,1737471044692,-273.79484458,0.00020547,2]
[349870825,1737471044702,-1073.6,0.00020547,2]
[349870826,1737471044711,-500.0,0.00020547,2]
[349870827,1737471044721,-500.0,0.00020547,2]
[349870828,1737471044731,-162.54068013,0.00020547,2]
[349870829,1737471044744,-500.0,0.00020547,2]
[349870830,1737471044754,-500.0,0.00020547,2]
[349870831,1737471044763,-500.0,0.00020547,2]
[349870832,1737471044773,-500.0,0.00020547,2]
[349870833,1737471044784,-1000.0,0.00020551,2]
[349870834,1737471044797,-150.0,0.00020553,2]
[349870835,1737471044806,-227.41815461,0.00020566,2]
[349870836,1737471044819,-344.43494545,0.00020566,2]
[349870837,1737471044828,-114.00756891,0.00020567,2]
[349870838,1737471044840,-885.99243109,0.00020567,2]
[349870839,1737471044850,-207.0,0.0002057,2]
[349870840,1737471044860,-205.0,0.0002057,2]
[349870841,1737471044870,-501.65393382,0.00020573,2]
[349870842,1737471044879,-500.43010488,0.00020573,2]
[349870843,1737471044889,-1481.3659136,0.0002058,2]
[349870844,1737471044898,-150.0,0.00020625,2]
[349870845,1737471044908,-150.0,0.00020625,2]
[349870846,1737471044918,-150.0,0.00020625,2]
[349870847,1737471044927,-150.0,0.00020626,2]
[349870848,1737471044936,-1000.0,0.00020652,2]
[349870849,1737471044946,-85.8051205,0.00020658,2]
[349870850,1737471044957,-64.1948795,0.00020658,2]
[349870851,1737471044967,-150.0,0.00020664,2]
[349870852,1737471044976,-152.0,0.00020666,3]
[349870853,1737471044986,-203.74815304,0.00020669,2]
[349870854,1737471044998,-796.25184696,0.00020669,2]
[349870855,1737471045008,-82.10488604,0.00020673,2]
[349870856,1737471045020,-399.85919424,0.00020673,2]
[349870857,1737471045032,-20.26724375,0.00020673,2]
[349870858,1737471045045,-150.0,0.00020674,2]
[349870859,1737471045055,-571.85310006,0.00020678,2]
[349870860,1737471045065,-446.69841123,0.00020689,2]
[349870861,1737471045075,-664.2,0.00020691,2]
[349870862,1737471045084,-556.98124586,0.00020691,2]
[349870863,1737471045099,-779.52491515,0.00020691,2]
[349870864,1737471045115,-260.61383899,0.00020691,2]
[349870865,1737471045126,-705.84,0.00020691,2]
[349870866,1737471045136,-534.53,0.00020691,2]
[349870867,1737471045146,-1996.82,0.00020691,2]
[349870868,1737471045157,-500.0,0.00020691,2]
[349870869,1737471045168,-1763.54,0.00020691,2]
[349870870,1737471045178,-859.09,0.00020691,2]
[349870871,1737471045188,-500.0,0.00020691,2]
[349870872,1737471045197,-887.8,0.00020691,2]
[349870873,1737471045207,-948.37,0.00020691,2]
[349870874,1737471045216,-1162.7,0.00020691,2]
[349870875,1737471045226,-2151.92,0.00020691,2]
[349870876,1737471045236,-1995.43,0.00020691,2]
[349870877,1737471045252,-868.54,0.00020691,2]
[349870878,1737471045261,-500.0,0.00020691,2]
[349870879,1737471045271,-658.22,0.00020691,2]
[349870880,1737471045282,-500.0,0.00020691,2]
[349870881,1737471045294,-500.0,0.00020691,2]
[349870882,1737471045305,-1901.07,0.00020691,2]
[349870883,1737471045315,-500.0,0.00020691,2]
[349870884,1737471045325,-500.0,0.00020691,2]
[349870885,1737471045338,-500.0,0.00020691,2]
[349870886,1737471045348,-500.0,0.00020691,2]
[349870887,1737471045359,-500.0,0.00020691,2]
[349870888,1737471045369,-510.61576379,0.00020691,2]
[349870889,1737471045380,-1813.3,0.00020691,2]
[349870890,1737471045390,-500.0,0.00020691,2]
[349870891,1737471045402,-500.0,0.00020691,2]
[349870892,1737471045413,-500.0,0.00020691,2]
[349870893,1737471045423,-500.0,0.00020692,2]
[349870894,1737471045434,-500.0,0.00020692,2]
[349870895,1737471045444,-500.0,0.00020692,2]
[349870896,1737471045454,-500.0,0.00020692,2]
[349870897,1737471045463,-500.0,0.00020692,2]
[349870898,1737471045473,-150.0,0.00020692,2]
[349870899,1737471045482,-500.0,0.00020692,2]
[349870900,1737471045492,-500.0,0.00020692,2]
[349870901,1737471045502,-500.0,0.00020692,2]
[349870902,1737471045511,-500.0,0.00020692,2]
[349870903,1737471045522,-500.0,0.00020692,2]
[349870904,1737471045531,-500.0,0.00020692,2]
[349870905,1737471045544,-500.0,0.00020692,2]
[349870906,1737471045553,-500.0,0.00020692,2]
[349870907,1737471045563,-500.0,0.00020692,2]
[349870908,1737471045572,-500.0,0.00020692,2]
[349870909,1737471045582,-500.0,0.00020692,2]
[349870910,1737471045591,-500.0,0.00020692,2]
[349870912,1737471045601,-500.0,0.00020692,2]
[349870913,1737471045610,-500.0,0.00020692,2]
[349870914,1737471045620,-500.0,0.00020692,2]
[349870915,1737471045630,-500.0,0.00020692,2]
[349870916,1737471045639,-14.60039722,0.00020692,2]
[349870919,1737471046034,-272.9,0.00020143,2]
[349870920,1737471046048,-227.1,0.00020143,2]
[349870921,1737471046058,-485.39960278,0.00020692,2]
[349870922,1737471046068,-500.0,0.00020692,2]
[349870923,1737471046078,-508.17988414,0.00020692,2]
[349870924,1737471046087,-500.0,0.00020692,2]
[349870925,1737471046098,-500.0,0.00020692,2]
[349870926,1737471046108,-200.85309505,0.00020692,2]
[349870927,1737471046118,-500.0,0.00020692,2]
[349870928,1737471046128,-500.0,0.00020692,2]
[349870929,1737471046138,-1868.42,0.00020692,2]
[349870930,1737471046147,-500.0,0.00020692,2]
[349870931,1737471046157,-796.08,0.00020692,2]
[349870932,1737471046167,-656.859309,0.00020692,2]
[349870933,1737471046177,-500.0,0.00020692,2]
[349870934,1737471046187,-500.0,0.00020692,2]
[349870935,1737471046198,-500.0,0.00020692,2]
[349870936,1737471046208,-575.13,0.00020692,2]
[349870937,1737471046218,-1833.27,0.00020692,2]
[349870939,1737471046228,-501.552762,0.00020692,2]
[349870941,1737471046237,-2187.7,0.00020692,2]
[349870942,1737471046248,-500.0,0.00020692,2]
[349870943,1737471046261,-500.0,0.00020692,2]
[349870944,1737471046271,-500.0,0.00020692,2]
[349870945,1737471046281,-853.03,0.00020692,2]
[349870946,1737471046293,-500.0,0.00020692,2]
[349870947,1737471046303,-1159.22,0.00020692,2]
[349870948,1737471046313,-976.93483149,0.00020692,2]
[349870949,1737471046325,-84.80516851,0.00020692,2]
[349870950,1737471046335,-500.0,0.00020692,2]
[349870951,1737471046345,-500.0,0.00020692,2]
[349870952,1737471046354,-595.94,0.00020692,2]
[349870953,1737471046364,-200.0,0.00020692,2]
[349870954,1737471046374,-820.25483167,0.00020692,2]
[349870956,1737471046400,-150.0,0.00020419,2]
[349870957,1737471046409,-1239.97516833,0.00020692,2]
[349870958,1737471046419,-500.0,0.00020692,2]
[349870959,1737471046429,-1462.91,0.00020692,2]
[349870960,1737471046438,-500.0,0.00020692,2]
[349870961,1737471046447,-1567.14,0.00020692,2]
[349870962,1737471046457,-500.0,0.00020692,2]
[349870963,1737471046467,-500.0,0.00020692,2]
[349870964,1737471046477,-3271.02,0.00020692,2]
[349870965,1737471046486,-500.0,0.00020692,2]
[349870966,1737471046496,-209.71574588,0.00020692,2]
[349870968,1737471558766,226.8,0.00018964,30]
[349870969,1737471559366,226.8,0.00021548,30]
[349870979,1737471951648,550.0,0.00015,2]
[349870987,1737472212767,180.53,0.00010137,2]
[349870991,1737472232125,-180.53,0.00016813,2]
[349870992,1737472232135,-600.0,0.00017,2]
[349870993,1737472232144,-33.1383851,0.00017,5]
[349870994,1737472232198,-343.8616149,0.00017,5]
[349870995,1737472232208,-1395.65416147,0.00017071,2]
[349870996,1737472232217,-535.88,0.00017171,2]
[349870997,1737472232226,-150.0,0.00018573,2]
[349870998,1737472232236,-150.0,0.0001884,2]
[349870999,1737472232245,-150.0,0.00018888,2]
[349871000,1737472232255,-415.89,0.00018898,2]
[349871001,1737472232264,-958.08,0.00018926,2]
[349871002,1737472232274,-250.0,0.00018989,2]
[349871003,1737472232283,-1000.0,0.00019018,2]
[349871004,1737472232292,-1031.29,0.00019019,2]
[349871005,1737472232302,-162.0,0.00019019,2]
[349871006,1737472232525,-250.0,0.00019038,2]
[349871007,1737472232536,-182.86,0.00019043,2]
[349871008,1737472232546,-300.0,0.00019069,2]
[349871009,1737472232556,-3213.72,0.0001907,2]
[349871010,1737472232565,-438.48,0.00019123,2]
[349871011,1737472232575,-773.11,0.00019123,2]
[349871012,1737472232585,-438.48,0.00019123,2]
[349871013,1737472232595,-773.11,0.00019123,2]
[349871014,1737472232604,-438.48,0.00019123,2]
[349871015,1737472232614,-302.96,0.00019141,3]
[349871016,1737472232624,-7578.90919684,0.00019339,2]
[349871017,1737472232640,-472.4999982,0.00019339,2]
[349871018,1737472232653,-309.295005,0.00019339,2]
[349871019,1737472232665,-384.54,0.00019339,2]
[349871020,1737472232678,-5287.24579996,0.00019339,2]
[349871021,1737472232688,-535.88,0.00019435,2]
[349871022,1737472232697,-150.0,0.00019513,2]
[349871023,1737472232708,-171.18,0.00019538,2]
[349871024,1737472232718,-150.0,0.00019554,2]
[349871025,1737472232728,-150.0,0.00019647,2]
[349871026,1737472232737,-182.86,0.00019747,2]
[349871027,1737472232747,-981.3,0.00019788,2]
[349871028,1737472232756,-150.0,0.00019788,2]
[349871029,1737472232766,-150.0,0.0001979,2]
[349871030,1737472232776,-150.0,0.00019797,2]
[349871031,1737472232786,-150.0,0.00019831,2]
[349871032,1737472232795,-150.0,0.00019878,2]
[349871033,1737472232806,-150.0,0.00019882,2]
[349871034,1737472232816,-300.61860405,0.0001989,2]
[349871035,1737472232827,-150.0,0.00019913,2]
[349871036,1737472232837,-512.0,0.00019913,2]
[349871037,1737472232846,-728.89252674,0.00019943,2]
[349871038,1737472232856,-161.17,0.0001995,2]
[349871039,1737472232865,-1000.0,0.00019976,2]
[349871040,1737472232874,-150.0,0.00019992,2]
[349871041,1737472232883,-150.0,0.00019996,2]
[349871042,1737472232893,-9999.99,0.0002,2]
[349871043,1737472232903,-1563.3818,0.00020043,2]
[349871044,1737472232913,-1002.614,0.00020044,2]
[349871045,1737472232922,-150.0,0.00020049,2]
[349871046,1737472232932,-1228.8765,0.00020068,2]
[349871047,1737472232942,-773.11,0.00020082,2]
[349871048,1737472232951,-438.48,0.00020082,2]
[349871049,1737472232961,-438.48,0.00020082,2]
[349871050,1737472232971,-773.11,0.00020082,2]
[349871051,1737472232980,-773.11,0.00020082,2]
[349871052,1737472232990,-437.2,0.00020082,2]
[349871053,1737472233000,-1544.26,0.00020082,2]
[349871054,1737472233010,-150.0,0.00020083,2]
[349871055,1737472233021,-164.02986619,0.00020103,2]
[349871056,1737472233039,-74.59713381,0.00020103,2]
[349871057,1737472233050,-150.0,0.00020142,2]
[349871058,1737472233060,-500.0,0.00020143,2]
[349871059,1737472233070,-500.0,0.00020143,2]
[349871060,1737472233081,-500.0,0.00020143,2]
[349871061,1737472233091,-500.0,0.00020143,2]
[349871062,1737472233101,-500.0,0.00020143,2]
[349871063,1737472233111,-500.0,0.00020143,2]
[349871064,1737472233122,-500.0,0.00020143,2]
[349871065,1737472233132,-500.0,0.00020143,2]
[349871066,1737472233141,-500.0,0.00020143,2]
[349871067,1737472233151,-367.70310329,0.00020143,2]
[349871068,1737472233173,-132.29689671,0.00020143,2]
[349871069,1737472233183,-500.0,0.00020143,2]
[349871070,1737472233194,-500.0,0.00020143,2]
[349871071,1737472233204,-500.0,0.00020143,2]
[349871072,1737472233214,-648.1036597,0.00020143,2]
[349871073,1737472233225,-500.0,0.00020143,2]
[349871074,1737472233235,-576.576945,0.00020143,2]
[349871075,1737472233245,-500.0,0.00020143,2]
[349871076,1737472233256,-500.0,0.00020143,2]
[349871077,1737472233267,-500.0,0.00020143,2]
[349871078,1737472233283,-500.0,0.00020143,2]
[349871079,1737472233293,-500.0,0.00020143,2]
[349871080,1737472233303,-500.0,0.00020143,2]
[349871081,1737472233314,-500.0,0.00020143,2]
[349871082,1737472233325,-500.0,0.00020143,2]
[349871083,1737472233337,-547.64317058,0.00020143,2]
[349871084,1737472233347,-500.0,0.00020143,2]
[349871085,1737472233357,-595.71,0.00020143,2]
[349871086,1737472233369,-500.0,0.00020143,2]
[349871087,1737472233379,-500.0,0.00020143,2]
[349871088,1737472233389,-500.0,0.00020143,2]
[349871089,1737472233400,-500.0,0.00020143,2]
[349871090,1737472233410,-500.0,0.00020143,2]
[349871091,1737472233420,-500.0,0.00020143,2]
[349871092,1737472233430,-500.0,0.00020143,2]
[349871093,1737472233441,-500.0,0.00020143,2]
[349871094,1737472233451,-500.0,0.00020143,2]
[349871095,1737472233461,-500.0,0.00020143,2]
[349871096,1737472233472,-500.0,0.00020143,2]
[349871097,1737472233482,-500.0,0.00020143,2]
[349871098,1737472233492,-984.81,0.00020143,2]
[349871099,1737472233502,-500.0,0.00020143,2]
[349871100,1737472233513,-500.0,0.00020143,2]
[349871101,1737472233524,-500.0,0.00020143,2]
[349871102,1737472233534,-500.0,0.00020143,2]
[349871103,1737472233544,-500.0,0.00020143,2]
[349871104,1737472233555,-606.76490386,0.00020143,2]
[349871105,1737472233566,-500.0,0.00020143,2]
[349871106,1737472233577,-500.0,0.00020143,2]
[349871107,1737472233588,-500.0,0.00020143,2]
[349871108,1737472233598,-412.55863366,0.00020144,2]
[349871109,1737472233609,-474.472841,0.00020144,2]
[349871110,1737472233619,-500.0,0.00020144,2]
[349871111,1737472233631,-500.0,0.00020144,2]
[349871112,1737472233643,-500.0,0.00020144,2]
[349871113,1737472233654,-511.51401645,0.00020144,2]
[349871114,1737472233665,-500.0,0.00020144,2]
[349871115,1737472233676,-500.0,0.00020144,2]
[349871116,1737472233686,-500.0,0.00020144,2]
[349871117,1737472233696,-394.23069145,0.00020144,2]
[349871118,1737472233707,-500.0,0.00020144,2]
[349871119,1737472233718,-500.0,0.00020144,2]
[349871120,1737472233729,-500.0,0.00020144,2]
[349871121,1737472233739,-500.0,0.00020144,2]
[349871122,1737472233749,-500.0,0.00020144,2]
[349871123,1737472233759,-500.0,0.00020144,2]
[349871124,1737472233769,-500.0,0.00020144,2]
[349871125,1737472233788,-500.0,0.00020144,2]
[349871126,1737472233798,-505.06424015,0.00020144,2]
[349871127,1737472233812,-500.0,0.00020144,2]
[349871128,1737472233822,-500.0,0.00020144,2]
[349871129,1737472233832,-500.0,0.00020144,2]
[349871130,1737472233843,-500.0,0.00020144,2]
[349871131,1737472233854,-500.0,0.00020144,2]
[349871132,1737472233864,-500.0,0.00020144,2]
[349871133,1737472233875,-500.0,0.00020144,2]
[349871134,1737472233885,-500.0,0.00020144,2]
[349871135,1737472233896,-500.0,0.00020144,2]
[349871136,1737472233906,-500.0,0.00020144,2]
[349871137,1737472233917,-500.0,0.00020144,2]
[349871138,1737472233929,-500.0,0.00020144,2]
[349871139,1737472233939,-500.0,0.00020144,2]
[349871140,1737472233950,-500.0,0.00020144,2]
[349871141,1737472233961,-500.0,0.00020144,2]
[349871142,1737472233971,-500.0,0.00020144,2]
[349871143,1737472233981,-500.0,0.00020144,2]
[349871144,1737472233992,-500.0,0.00020144,2]
[349871145,1737472234002,-500.0,0.00020144,2]
[349871146,1737472234013,-500.0,0.00020144,2]
[349871147,1737472234026,-500.0,0.00020144,2]
[349871148,1737472234037,-504.22257209,0.00020144,2]
[349871149,1737472234047,-500.0,0.00020144,2]
[349871150,1737472234057,-500.0,0.00020144,2]
[349871151,1737472234069,-547.49822178,0.00020144,2]
[349871152,1737472234080,-500.0,0.00020144,2]
[349871153,1737472234090,-504.95483589,0.00020144,2]
[349871154,1737472234101,-500.0,0.00020144,2]
[349871155,1737472234111,-500.0,0.00020144,2]
[349871156,1737472234122,-500.0,0.00020144,2]
[349871157,1737472234132,-300.0,0.00020144,2]
[349871158,1737472234141,-500.0,0.00020144,2]
[349871159,1737472234151,-500.0,0.00020144,2]
[349871160,1737472234161,-500.0,0.00020144,2]
[349871161,1737472234170,-500.0,0.00020144,2]
[349871162,1737472234180,-500.0,0.00020144,2]
[349871163,1737472234189,-500.0,0.00020144,2]
[349871164,1737472234199,-500.0,0.00020144,2]
[349871165,1737472234208,-500.0,0.00020144,2]
[349871166,1737472234218,-500.0,0.00020144,2]
[349871167,1737472234228,-500.0,0.00020144,2]
[349871168,1737472234238,-500.0,0.00020144,2]
[349871169,1737472234249,-649.59,0.00020144,2]
[349871170,1737472234258,-500.0,0.00020144,2]
[349871171,1737472234268,-500.0,0.00020144,2]
[349871172,1737472234285,-500.0,0.00020144,2]
[349871173,1737472234294,-500.0,0.00020144,2]
[349871174,1737472234304,-500.0,0.00020144,2]
[349871175,1737472234314,-500.0,0.00020144,2]
[349871176,1737472234324,-503.7449619,0.00020144,2]
[349871177,1737472234334,-500.0,0.00020144,2]
[349871178,1737472234344,-500.0,0.00020144,2]